bitfinex/quotes_ETHUSD_20250406
["timestamp","ask_amount","ask_price","bid_price","bid_amount"]
[1743900551203,12.91986418,1812.6,1812.4,7.72434]
[1743900551800,12.91986418,1812.6,1812.4,3.86214]
[1743900552202,12.91986418,1812.6,1812.4,7.72428]
[1743900552688,12.91986418,1812.6,1812.4,3.86214]
[1743900555520,12.91986418,1812.6,1812.4,7.7243]
[1743900556009,11.205,1812.6,1812.5,3.86206]
[1743900556298,6.02,1812.6,1812.5,3.86206]
[1743900558102,12.66071215,1812.7,1812.5,3.86206]
[1743900559967,13.07652271,1812.7,1812.5,3.86206]
[1743900560170,11.61881056,1812.7,1812.5,3.86206]
[1743900561885,11.61881056,1812.7,1812.4,3.86214]
[1743900562470,11.61881056,1812.7,1812.4,7.7243]
[1743900562770,11.61881056,1812.7,1812.4,3.86214]
[1743900563904,11.61881056,1812.7,1812.5,3.86206]
[1743900564107,11.61881056,1812.7,1812.4,3.86214]
[1743900564278,13.7038889,1812.7,1812.4,3.86214]
[1743900565414,13.7038889,1812.7,1812.4,7.72429]
[1743900565715,3.00508062,1812.6,1812.4,7.72429]
[1743900566213,3.00508062,1812.6,1812.5,3.86206]
[1743900569217,3.00508062,1812.6,1812.5,4.67196]
[1743900569911,6.43581056,1812.7,1812.6,3.86185]
[1743900571215,6.02,1812.7,1812.6,3.86185]
[1743900571417,9.02508062,1812.9,1812.7,3.86148]
[1743900571591,4.0,1812.8,1812.7,3.86148]
[1743900572006,6.02,1812.9,1812.8,3.86142]
[1743900572209,6.02,1813.3,1813.2,3.86057]
[1743900572419,6.02,1813.5,1813.4,3.86015]
[1743900572713,10.02,1813.5,1813.4,3.86015]
[1743900573086,6.02,1813.5,1813.3,3.86029]
[1743900573286,6.02,1813.5,1813.4,4.64555]
[1743900574495,6.02,1813.5,1813.4,3.86015]
[1743900575696,16.4463403,1813.7,1813.4,3.86015]
[1743900576019,21.26220633,1813.7,1813.3,3.86029]
[1743900576384,21.26220633,1813.7,1813.3,7.72054]
[1743900577247,4.82419289,1813.5,1813.1,3.86065]
[1743900577745,8.68414289,1813.5,1813.1,3.86065]
[1743900577888,10.29354818,1813.5,1813.1,3.86065]
[1743900579322,4.0,1813.4,1813.1,3.86065]
[1743900585528,5.18,1813.3,1813.0,3.86091]
[1743900585697,11.2,1813.3,1813.0,3.86091]
[1743900587530,16.02419289,1813.3,1813.0,3.86091]
[1743900587829,1.60241929,1813.2,1813.0,3.86091]
[1743900588035,16.02419289,1813.3,1813.0,3.86091]
[1743900589032,3.55,1813.2,1812.8,4.61522]
[1743900589237,0.55,1813.0,1812.7,3.86162]
[1743900590031,0.96720959,1813.0,1812.7,3.86162]
[1743900590233,2.53443484,1813.0,1812.7,3.86162]
[1743900590740,5.18,1812.9,1812.7,3.86162]
[1743900591105,5.18,1812.9,1812.7,3.86152]
[1743900592005,5.18,1812.9,1812.7,3.8615]
[1743900592501,5.18,1812.9,1812.7,7.72304]
[1743900592703,5.18,1812.9,1812.7,3.8615]
[1743900592910,5.18,1812.9,1812.7,3.86149]
[1743900593122,5.18,1812.9,1812.7,7.72299]
[1743900593528,5.18,1812.9,1812.7,3.86149]
[1743900594242,5.18,1812.9,1812.8,3.86142]
[1743900596230,5.18,1812.9,1812.7,3.86149]
[1743900596421,5.18,1812.9,1812.7,7.72303]
[1743900597754,5.18,1812.9,1812.7,3.86149]
[1743900598465,5.79472096,1812.9,1812.7,3.86149]
[1743900600357,5.18,1812.9,1812.7,3.86149]
[1743900601857,5.18,1812.9,1812.7,7.72298]
[1743900602363,5.18,1812.9,1812.8,3.86142]
[1743900602562,9.18,1812.9,1812.8,3.86142]
[1743900602881,9.18,1812.9,1812.7,3.86149]
[1743900603645,9.91335564,1812.9,1812.6,3.86179]
[1743900603976,13.77458564,1812.9,1812.5,3.86204]
[1743900604177,18.59877853,1812.9,1812.5,3.86195]
[1743900604344,14.73754853,1812.9,1812.6,3.86182]
[1743900605476,14.73754853,1812.9,1812.6,3.86174]
[1743900605679,9.18,1812.9,1812.7,3.86151]
[1743900605851,9.18,1812.9,1812.7,7.72304]
[1743900606382,9.18,1812.9,1812.7,3.86151]
[1743900609494,9.18,1812.9,1812.7,7.72307]
[1743900610991,9.18,1812.9,1812.7,3.86151]
[1743900616002,9.18,1812.9,1812.8,4.62962]
[1743900616003,4.0,1812.9,1812.8,4.62962]
[1743900617221,3.0038763,1813.2,1812.8,0.7682]
[1743900617519,11.61845226,1813.3,1813.1,3.86065]
[1743900617688,4.0,1813.2,1813.1,3.86065]
[1743900618728,3.0038763,1813.2,1813.0,3.86099]
[1743900619126,3.59230025,1813.2,1813.0,3.86099]
[1743900619290,3.59230025,1813.2,1812.9,4.64981]
[1743900619722,5.41513777,1813.2,1812.9,4.64981]
[1743900620729,5.41513777,1813.2,1812.9,8.51088]
[1743900620899,5.41513777,1813.2,1813.0,3.86096]
[1743900621928,5.41513777,1813.2,1812.9,4.64967]
[1743900622949,5.41513777,1813.2,1812.9,8.51074]
[1743900623222,5.41513777,1813.2,1813.0,3.86098]
[1743900624182,5.41513777,1813.2,1812.9,4.64967]
[1743900624797,5.41513777,1813.2,1812.9,8.51079]
[1743900625197,5.41513777,1813.2,1812.9,3.86107]
[1743900625786,5.41513777,1813.2,1812.9,7.72215]
[1743900626521,5.41513777,1813.2,1812.9,7.72216]
[1743900626818,5.41513777,1813.2,1812.9,3.86107]
[1743900630135,5.41513777,1813.2,1812.8,0.8125]
[1743900630437,4.82671382,1813.2,1813.0,3.86085]
[1743900630632,4.82671382,1813.2,1813.0,7.72171]
[1743900630927,3.0,1813.2,1813.0,7.72171]
[1743900631135,3.0,1813.2,1813.0,8.53421]
[1743900631737,3.0,1813.2,1813.0,4.67335]
[1743900634132,11.61845226,1813.3,1813.0,4.67335]
[1743900634336,5.98855905,1813.2,1812.9,3.86119]
[1743900634627,5.98855905,1813.2,1812.9,7.72226]
[1743900634821,5.98855905,1813.2,1812.9,3.86107]
[1743900635323,5.98855905,1813.2,1812.9,7.72214]
[1743900635524,5.98855905,1813.2,1813.0,3.86099]
[1743900636229,5.98855905,1813.2,1812.9,3.86107]
[1743900641831,3.00330161,1813.1,1812.9,3.86107]
[1743900648450,3.00330161,1813.1,1812.9,7.7222]
[1743900648813,3.00330161,1813.1,1812.9,3.86107]
[1743900649153,8.178,1813.2,1813.0,8.5255]
[1743900649649,8.178,1813.2,1813.1,3.86079]
[1743900649813,4.0,1813.2,1813.1,3.86079]
[1743900650219,11.198,1813.3,1813.1,7.72158]
[1743900650448,11.198,1813.3,1813.2,3.86057]
[1743900650657,6.02,1813.3,1813.2,4.66437]
[1743900653024,6.02,1813.3,1813.1,3.86079]
[1743900653025,9.62530161,1813.3,1813.0,4.66479]
[1743900653225,3.00330161,1813.1,1812.9,3.86116]
[1743900653425,3.00330161,1813.1,1812.9,7.72222]
[1743900654151,3.00330161,1813.1,1813.0,3.861]
[1743900654456,6.02,1813.3,1813.1,3.86077]
[1743900654457,9.02330161,1813.3,1813.1,3.86077]
[1743900656727,9.02330161,1813.3,1813.0,4.66467]
[1743900657656,6.02,1813.3,1813.0,4.66467]
[1743900657828,6.02,1813.3,1813.0,8.52552]
[1743900659564,6.02,1813.3,1813.1,3.86077]
[1743900659953,6.02,1813.3,1813.2,3.86057]
[1743900660158,15.197,1813.3,1813.2,3.86057]
[1743900660353,18.197,1813.3,1813.2,4.62507]
[1743900661373,14.197,1813.3,1813.2,4.62507]
[1743900662033,14.197,1813.3,1813.1,3.86073]
[1743900664877,16.09928075,1813.3,1813.0,3.86098]
[1743900665368,14.197,1813.3,1813.0,3.86098]
[1743900665536,18.05749,1813.3,1812.9,3.86121]
[1743900665743,11.68639746,1813.2,1812.9,3.86121]
[1743900666278,11.68639746,1813.2,1812.8,4.65594]
[1743900666464,11.68639746,1813.2,1812.8,8.51723]
[1743900666664,11.68639746,1813.2,1812.8,4.65589]
[1743900667274,11.68639746,1813.2,1812.7,3.86162]
[1743900667275,4.4108,1813.1,1812.7,3.86162]
[1743900667483,10.84580746,1813.0,1812.7,3.86162]
[1743900667781,8.68725746,1812.8,1812.5,3.86185]
[1743900667990,8.68725746,1812.8,1812.3,4.65689]
[1743900668178,9.88173,1812.7,1812.3,4.65689]
[1743900668472,9.88173,1812.7,1812.4,0.17260783]
[1743900668676,9.88173,1812.7,1812.2,3.86268]
[1743900668677,11.68769746,1812.6,1812.2,3.86268]
[1743900668973,9.03907,1812.5,1812.1,8.62013]
[1743900669553,5.177,1812.5,1812.1,8.62013]
[1743900669746,5.177,1812.5,1812.2,3.86268]
[1743900670783,9.03906,1812.5,1812.1,4.75731]
[1743900670985,5.177,1812.5,1812.1,8.62007]
[1743900671177,5.177,1812.5,1812.2,3.86265]
[1743900674459,5.177,1812.5,1812.1,3.96271]
[1743900674660,3.86228,1812.4,1812.1,0.1]
[1743900676279,9.03923,1812.5,1812.1,3.9629]
[1743900676478,9.03923,1812.5,1812.1,0.1]
[1743900676787,3.0,1812.3,1812.1,0.1]
[1743900677758,9.59201046,1812.4,1812.1,0.1]
[1743900678290,15.61201046,1812.4,1812.1,0.1]
[1743900678491,19.47449046,1812.4,1812.1,0.1]
[1743900678858,0.55,1812.3,1812.1,0.1]
[1743900679058,6.41495905,1812.3,1812.1,0.1]
[1743900679261,3.0,1812.2,1812.1,0.1]
[1743900679758,3.0,1812.2,1810.9,0.8191]
[1743900679759,3.0,1812.0,1810.9,0.8191]
[1743900679957,4.82580746,1811.3,1811.0,3.86518]
[1743900680184,5.186,1811.3,1811.0,3.86518]
[1743900680383,10.01180746,1811.3,1811.0,3.86518]
[1743900683092,10.42761514,1811.3,1811.0,3.86518]
[1743900685794,4.0,1811.2,1811.0,3.86518]
[1743900686997,10.42761514,1811.3,1811.0,3.86518]
[1743900688193,16.02158065,1811.3,1810.9,4.68457]
[1743900688364,16.02158065,1811.3,1810.9,3.86547]
[1743900689590,12.15682065,1811.3,1810.9,7.7308]
[1743900689775,12.15682065,1811.3,1810.9,3.86533]
[1743900690095,4.0,1811.2,1810.9,3.86533]
[1743900690393,4.0,1811.2,1811.0,3.86517]
[1743900690969,4.0,1811.2,1811.1,3.96505]
[1743900692812,4.0,1811.2,1811.1,0.1]
[1743900694879,4.0,1811.2,1811.1,3.96505]
[1743900696000,6.04476151,1811.2,1811.1,0.1]
[1743900697071,6.59476151,1811.2,1811.1,0.1]
[1743900697900,10.45960151,1811.2,1811.1,0.1]
[1743900698606,6.59476151,1811.2,1811.1,0.1]
[1743900699404,4.55,1811.2,1811.1,0.1]
[1743900700301,4.0,1811.2,1811.1,3.96505]
[1743900701376,4.0,1811.2,1811.1,4.69265]
[1743900701776,6.43580768,1811.3,1811.1,4.69265]
[1743900702209,6.43580768,1811.3,1811.1,0.8276]
[1743900702399,6.43580768,1811.3,1811.1,0.05]
[1743900702400,5.46938823,1811.2,1811.1,0.05]
[1743900702601,4.82580746,1811.2,1811.1,0.05]
[1743900703190,8.82580746,1811.2,1811.1,0.05]
[1743900705183,9.37580746,1811.2,1811.1,0.05]
[1743900707379,9.37580746,1811.2,1811.1,3.91505]
[1743900707706,15.39580746,1811.2,1811.1,3.91505]
[1743900708479,23.84180897,1811.2,1811.1,0.05]
[1743900711029,24.62902862,1811.2,1811.1,0.05]
[1743900711329,24.62902862,1811.2,1810.6,0.1727756]
[1743900711330,9.24170746,1810.7,1810.6,0.1727756]
[1743900711528,23.47470746,1810.7,1810.6,0.1727756]
[1743900711818,3.86656,1810.4,1810.1,0.1]
[1743900712020,4.82580746,1810.2,1810.1,0.1]
[1743900712317,4.82580746,1810.2,1810.1,0.27283118]
[1743900712485,4.82580746,1810.2,1810.1,0.1]
[1743900712887,8.82580746,1810.2,1810.1,0.1]
[1743900713119,11.08088821,1810.2,1810.1,0.1]
[1743900713617,20.96785821,1810.2,1810.1,0.1]
[1743900713821,23.96785821,1810.2,1810.1,0.1]
[1743900720247,3.86786,1809.8,1809.3,3.86871]
[1743900720397,4.82580746,1809.6,1809.3,7.73746]
[1743900720727,10.84580746,1809.6,1809.3,3.86871]
[1743900720920,11.27000067,1809.6,1809.3,3.86871]
[1743900721322,11.27000067,1809.6,1809.3,7.73745]
[1743900721495,13.69978634,1809.6,1809.3,7.73745]
[1743900721820,13.69978634,1809.6,1809.4,3.86857]
[1743900722193,6.02,1809.6,1809.5,4.67057]
[1743900722391,10.02,1809.6,1809.5,4.67057]
[1743900722597,6.02,1810.0,1809.9,4.66971]
[1743900722820,16.50592597,1810.1,1810.0,3.8674]
[1743900723193,16.50592597,1810.1,1809.9,4.66961]
[1743900723397,16.50592597,1810.1,1810.0,3.8674]
[1743900724129,11.68011851,1810.1,1810.0,3.8674]
[1743900724328,11.68011851,1810.1,1809.9,4.66961]
[1743900724922,11.68011851,1810.1,1809.9,0.8021]
[1743900725131,13.01863844,1810.1,1809.9,0.8021]
[1743900725335,13.01863844,1810.1,1809.9,4.66966]
[1743900725705,0.55,1810.0,1809.7,0.8021]
[1743900726007,0.55,1810.0,1809.7,4.67013]
[1743900726230,2.77617259,1810.0,1809.7,4.67013]
[1743900726433,2.77617259,1810.0,1809.8,3.86765]
[1743900726724,2.77617259,1810.0,1809.7,0.8021]
[1743900726894,4.82580746,1809.9,1809.6,3.86805]
[1743900727094,11.99275547,1809.9,1809.6,3.86805]
[1743900727291,0.55,1809.8,1809.6,3.86805]
[1743900727507,11.99275547,1809.9,1809.7,3.86804]
[1743900728012,11.99275547,1809.9,1809.7,7.73591]
[1743900728222,10.84580746,1809.9,1809.8,0.8021]
[1743900729393,10.84580746,1809.9,1809.8,4.66993]
[1743900731235,6.02,1809.9,1809.8,4.66993]
[1743900731618,6.02,1809.9,1809.8,0.8021]
[1743900733042,5.37580746,1809.9,1809.2,0.8021]
[1743900733204,5.37580746,1809.9,1809.5,4.67045]
[1743900733205,6.57,1809.8,1809.5,4.67045]
[1743900733403,10.07280746,1809.7,1809.5,0.8021]
[1743900733916,10.07280746,1809.7,1809.4,3.86867]
[1743900736938,6.02,1809.6,1809.4,3.86867]
[1743900737873,9.24432746,1809.5,1809.1,4.02451721]
[1743900738036,5.37580746,1809.3,1809.1,0.1]
[1743900738366,10.62180746,1809.3,1809.1,0.1]
[1743900739670,10.62180746,1809.3,1809.1,3.9693]
[1743900740181,10.62180746,1809.3,1809.1,0.1]
[1743900740469,5.246,1809.3,1809.2,3.86911]
[1743900740826,14.265,1809.4,1809.3,4.65419]
[1743900742275,14.265,1809.4,1809.3,0.7853]
[1743900742940,14.265,1809.4,1809.3,4.65419]
[1743900744268,6.02,1809.4,1809.3,4.65419]
[1743900744473,6.02,1809.4,1809.3,5.67939887]
[1743900744833,6.02,1809.4,1809.3,4.82708287]
[1743900746678,6.02,1810.0,1809.4,4.66358]
[1743900746854,5.246,1809.9,1809.7,7.7358]
[1743900747056,5.246,1809.9,1809.7,3.86785]
[1743900750170,5.246,1809.9,1809.6,3.86825]
[1743900750373,5.246,1809.9,1809.6,7.73637]
[1743900750665,5.246,1809.9,1809.6,3.86812]
[1743900751045,5.246,1809.9,1809.6,3.8681]
[1743900751244,5.246,1809.9,1809.7,3.86804]
[1743900752045,5.246,1809.9,1809.6,7.73626]
[1743900752869,5.246,1809.9,1809.6,3.8681]
[1743900753099,5.246,1809.9,1809.7,3.86803]
[1743900754068,5.246,1809.9,1809.6,3.8681]
[1743900754273,5.246,1809.9,1809.5,0.7949]
[1743900754440,5.246,1809.9,1809.6,7.7365]
[1743900754639,5.246,1809.9,1809.6,7.73642]
[1743900754869,5.246,1809.9,1809.6,7.73627]
[1743900755566,5.246,1809.9,1809.7,3.86802]
[1743900755771,5.246,1809.9,1809.6,3.8681]
[1743900755939,5.246,1809.9,1809.6,7.73625]
[1743900756268,5.246,1809.9,1809.6,7.73627]
[1743900756934,5.246,1809.9,1809.6,3.8681]
[1743900757338,5.246,1809.9,1809.6,7.73625]
[1743900757537,5.246,1809.9,1809.6,3.8681]
[1743900757780,5.246,1809.9,1809.7,3.86804]
[1743900758676,13.84580746,1810.0,1809.7,3.86794]
[1743900758886,9.02,1810.0,1809.9,3.86761]
[1743900759054,15.24521185,1810.0,1809.9,3.86761]
[1743900759557,15.24521185,1810.0,1809.8,4.67817]
[1743900760997,15.24521185,1810.0,1809.8,0.8104]
[1743900761478,20.07101931,1810.0,1809.8,0.8104]
[1743900761664,20.07101931,1810.0,1809.7,4.66231]
[1743900761867,20.07101931,1810.0,1809.7,8.53021]
[1743900762578,20.07101931,1810.0,1809.7,8.53023]
[1743900762776,20.07101931,1810.0,1809.7,4.6623]
[1743900762937,20.07101931,1810.0,1809.7,8.53021]
[1743900763343,20.07101931,1810.0,1809.7,8.53022]
[1743900763573,20.07101931,1810.0,1809.7,4.6623]
[1743900763757,20.07101931,1810.0,1809.7,8.53023]
[1743900764280,20.07101931,1810.0,1809.7,4.6623]
[1743900764647,20.07101931,1810.0,1809.8,3.8677]
[1743900767978,20.07101931,1810.0,1809.9,3.86761]
[1743900768951,15.24521185,1810.0,1809.9,3.86761]
[1743900769444,14.246,1810.0,1809.9,3.86761]
[1743900771080,6.02,1810.0,1809.9,3.86761]
[1743900771291,6.02,1810.0,1809.9,4.66201]
[1743900771469,6.44211851,1810.1,1810.0,3.8674]
[1743900771652,9.44211851,1810.1,1810.0,3.8674]
[1743900772054,6.02,1810.1,1810.0,4.720341]
[1743900772258,6.02,1810.1,1810.0,3.8674]
[1743900774605,6.02,1810.1,1810.0,4.04023069]
[1743900775159,35.73880746,1810.4,1810.2,3.86686]
[1743900775358,30.913,1810.4,1810.2,3.86686]
[1743900777386,31.33141611,1810.4,1810.2,3.86686]
[1743900781401,31.33141611,1810.4,1810.3,3.86676]
[1743900782208,6.02,1810.7,1810.4,3.86654]
[1743900782408,6.02,1810.7,1810.5,3.86633]
[1743900782594,10.84580746,1810.7,1810.5,3.86633]
[1743900783311,4.0,1810.6,1810.4,3.86654]
[1743900783488,4.0,1810.6,1810.4,3.86645]
[1743900784109,4.0,1810.6,1810.4,7.73291]
[1743900784273,4.0,1810.6,1810.4,3.86645]
[1743900784476,4.0,1810.6,1810.1,4.66303]
[1743900784477,5.37580746,1810.5,1810.1,4.66303]
[1743900784676,8.88980679,1810.6,1810.3,3.8666]
[1743900784889,7.40522604,1810.6,1810.4,3.86654]
[1743900785090,4.0,1810.5,1810.4,3.86654]
[1743900785509,4.0,1810.5,1810.4,4.66254]
[1743900789011,4.0,1810.5,1810.4,5.515454]
[1743900789212,6.02,1810.7,1810.6,3.86612]
[1743900789523,4.0,1810.7,1810.6,7.73224]
[1743900789825,4.0,1810.7,1810.6,8.52824]
[1743900790584,6.02,1810.8,1810.7,3.8659]
[1743900791521,6.02,1810.8,1810.7,4.718702]
[1743900794831,6.02,1810.8,1810.7,5.484802]
[1743900795725,25.30186272,1811.1,1810.9,3.86534]
[1743900795939,25.30186272,1811.1,1811.0,3.86526]
[1743900796103,29.30186272,1811.1,1811.0,3.86526]
[1743900796706,29.30186272,1811.1,1810.9,3.86534]
[1743900797029,29.30186272,1811.1,1810.9,7.73068]
[1743900797436,29.30186272,1811.1,1810.9,7.73073]
[1743900797934,29.30186272,1811.1,1810.9,3.86534]
[1743900798156,29.30186272,1811.1,1810.9,7.73067]
[1743900798328,29.30186272,1811.1,1810.9,3.86533]
[1743900798721,29.30186272,1811.1,1810.9,7.73072]
[1743900798921,29.30186272,1811.1,1810.9,3.86533]
[1743900799140,29.30186272,1811.1,1810.8,3.86568]
[1743900799327,32.75254899,1811.1,1810.8,3.86556]
[1743900800308,32.75254899,1811.1,1810.8,7.73111]
[1743900800935,4.0,1811.0,1810.8,7.73111]
[1743900801294,4.0,1811.0,1810.8,3.86555]
[1743900801494,4.0,1811.0,1810.9,3.86548]
[1743900805131,0.41486272,1811.1,1811.0,3.86526]
[1743900805327,4.0,1811.1,1811.0,3.86526]
[1743900810486,4.0,1811.1,1811.0,4.65906]
[1743900810642,6.02,1811.3,1811.2,3.86484]
[1743900810842,10.02,1811.3,1811.2,3.86484]
[1743900811683,6.02,1811.3,1811.2,3.86484]
[1743900812972,6.02,1811.3,1811.2,4.65864]
[1743900814974,6.02,1811.3,1811.2,3.86484]
[1743900815476,6.622,1811.3,1811.1,3.86497]
[1743900816488,6.622,1811.3,1811.1,7.72987]
[1743900817197,6.622,1811.3,1811.1,3.8649]
[1743900818898,6.622,1811.3,1811.1,7.72982]
[1743900819093,6.02,1811.3,1811.1,7.72982]
[1743900819255,6.02,1811.3,1811.2,3.86484]
[1743900819455,10.02,1811.3,1811.2,3.86484]
[1743900821597,6.02,1811.3,1811.2,3.86484]
[1743900822059,11.62655115,1811.5,1811.3,3.86454]
[1743900822395,4.0,1811.4,1811.3,3.86454]
[1743900841313,4.0,1811.4,1811.2,3.86484]
[1743900841502,6.43755115,1811.5,1811.2,7.72957]
[1743900842437,6.43755115,1811.5,1811.3,3.86455]
[1743900843039,6.43755115,1811.5,1811.4,4.66651]
[1743900843040,6.02,1811.5,1811.4,4.66651]
[1743900844469,10.02,1811.5,1811.4,4.66651]
[1743900845542,6.02,1811.5,1811.4,4.66651]
[1743900846502,6.02,1811.5,1811.4,3.86441]
[1743900847951,6.02,1811.5,1811.4,4.637299]
[1743900848516,14.21254033,1811.8,1811.5,3.86417]
[1743900848716,4.0,1811.6,1811.5,3.86417]
[1743900849342,4.0,1811.6,1811.4,3.86441]
[1743900849549,4.0,1811.6,1811.4,7.72882]
[1743900849910,4.41053023,1811.6,1811.4,7.72882]
[1743900852348,4.41053023,1811.6,1811.5,3.8642]
[1743900853451,4.0,1811.6,1811.5,3.8642]
[1743900853618,4.0,1811.6,1811.5,4.637061]
[1743900854448,11.203,1811.8,1811.6,3.86384]
[1743900854663,4.0,1811.7,1811.6,3.86384]
[1743900855973,9.44280077,1811.8,1811.6,7.72768]
[1743900856752,9.02854033,1811.8,1811.7,3.86377]
[1743900857050,13.02854033,1811.8,1811.7,3.86377]
[1743900859044,9.02854033,1811.8,1811.7,3.86377]
[1743900862593,13.02854033,1811.8,1811.7,3.86377]
[1743900865093,10.02,1811.8,1811.7,3.86377]
[1743900865391,6.02,1811.8,1811.7,4.717321]
[1743900866163,6.52700951,1811.9,1811.8,3.86356]
[1743900866361,10.52700951,1811.9,1811.8,3.86356]
[1743900866682,6.12,1811.9,1811.8,3.86356]
[1743900878425,6.12,1811.9,1811.5,3.864]
[1743900878716,3.00854033,1811.7,1811.4,3.86433]
[1743900878904,8.19054033,1811.7,1811.4,7.72859]
[1743900879481,3.00854033,1811.5,1811.3,3.86445]
[1743900879939,6.02,1811.6,1811.4,3.86441]
[1743900880081,14.21054033,1811.7,1811.4,3.86441]
[1743900880287,16.01795036,1811.7,1811.4,3.86441]
[1743900882396,16.01795036,1811.7,1811.4,3.8643]
[1743900887338,14.21054033,1811.7,1811.4,7.72859]
[1743900887536,4.0,1811.5,1811.4,7.72859]
[1743900888022,4.0,1811.5,1811.4,8.50759]
[1743900888224,4.0,1811.5,1811.4,4.64329]
[1743900892483,14.21054033,1811.7,1811.5,3.86413]
[1743900892654,4.0,1811.6,1811.5,3.86413]
[1743900893478,5.82105403,1811.6,1811.3,3.86462]
[1743900893683,3.00854033,1811.5,1811.3,3.86462]
[1743900893845,3.00854033,1811.5,1811.3,7.72912]
[1743900894246,14.21054033,1811.7,1811.4,3.86441]
[1743900896684,14.21054033,1811.7,1811.4,7.72866]
[1743900896987,14.21054033,1811.7,1811.4,7.72851]
[1743900897279,3.00854033,1811.6,1811.3,3.86459]
[1743900897465,4.0,1811.5,1811.3,3.86459]
[1743900898289,4.0,1811.5,1811.4,4.74121428]
[1743900898586,0.1,1811.9,1811.8,4.68516]
[1743900899447,0.1,1811.9,1811.8,4.85780686]
[1743900899663,0.1,1811.9,1811.8,5.72995755]
[1743900899863,0.1,1811.9,1811.8,4.85780686]
[1743900900059,0.1,1811.9,1811.8,4.03620686]
[1743900900267,0.1,1811.9,1811.8,3.86356]
[1743900912309,0.1,1811.9,1811.8,4.66396]
[1743900913006,0.1,1811.9,1811.8,3.86356]
[1743900917419,11.56395442,1811.9,1811.6,3.86398]
[1743900917586,5.752,1811.8,1811.6,3.86398]
[1743900917789,5.202,1811.8,1811.7,3.86377]
[1743900920117,5.202,1811.8,1811.5,7.72836]
[1743900920315,5.202,1811.8,1811.5,3.86418]
[1743900920910,6.09794585,1811.8,1811.5,3.86418]
[1743900921820,12.11794585,1811.8,1811.5,3.86418]
[1743900923737,15.12566451,1811.8,1811.5,3.86418]
[1743900924340,18.98922451,1811.8,1811.4,3.8644]
[1743900924926,3.00771866,1811.6,1811.3,3.86461]
[1743900925133,6.87170866,1811.6,1811.3,3.86461]
[1743900925508,6.87170866,1811.6,1811.2,3.86473]
[1743900926122,6.87170866,1811.6,1811.2,3.8647]
[1743900927041,6.87170866,1811.6,1811.2,7.7294]
[1743900927242,8.13516777,1811.6,1811.2,7.7294]
[1743900927414,4.0,1811.5,1811.2,7.7294]
[1743900927619,5.206,1811.4,1811.2,7.7294]
[1743900927941,5.206,1811.4,1811.2,3.8647]
[1743900928106,5.206,1811.4,1811.2,7.72943]
[1743900928306,5.206,1811.4,1811.3,3.86462]
[1743900929444,15.221,1811.5,1811.4,3.86441]
[1743900931127,11.221,1811.5,1811.4,3.86441]
[1743900931723,11.221,1811.5,1811.3,4.67977]
[1743900932114,11.221,1811.5,1811.3,3.86447]
[1743900933231,11.221,1811.5,1811.2,3.86483]
[1743900933428,3.00771866,1811.4,1811.2,3.86474]
[1743900935822,17.90798903,1811.5,1811.2,3.86474]
[1743900936618,17.90798903,1811.5,1811.2,7.72944]
[1743900937362,17.90798903,1811.5,1811.3,3.86462]
[1743900937656,4.0,1811.4,1811.3,3.86462]
[1743900938157,17.90798903,1811.5,1811.3,3.86462]
[1743900941657,6.02,1811.5,1811.3,3.86449]
[1743900941824,5.192,1811.4,1811.3,3.86449]
[1743900945257,5.192,1811.4,1811.2,4.69436]
[1743900945460,5.192,1811.4,1811.2,3.86472]
[1743900945830,5.192,1811.4,1811.3,3.86462]
[1743900948873,11.203,1811.5,1811.4,3.86441]
[1743900949972,11.203,1811.5,1811.3,4.637444]
[1743900950168,11.203,1811.5,1811.3,7.72905]
[1743900950729,11.203,1811.5,1811.3,3.86451]
[1743900950934,11.203,1811.5,1811.4,3.86441]
[1743900952393,11.203,1811.5,1811.4,4.69401]
[1743900952874,11.203,1811.5,1811.4,4.86671046]
[1743900953081,11.203,1811.5,1811.4,5.73983251]
[1743900953518,11.203,1811.5,1811.4,4.91023251]
[1743900953778,11.203,1811.5,1811.3,3.86451]
[1743900954144,11.203,1811.5,1811.3,7.72905]
[1743900955250,11.203,1811.5,1811.3,3.86451]
[1743900955450,11.203,1811.5,1811.3,7.72905]
[1743900956149,11.203,1811.5,1811.3,3.86451]
[1743900957269,11.203,1811.5,1811.3,7.72898]
[1743900958382,11.203,1811.5,1811.3,7.72894]
[1743900958741,11.203,1811.5,1811.3,7.72901]
[1743900960308,11.203,1811.5,1811.4,3.86441]
[1743900960471,15.203,1811.5,1811.4,3.86441]
[1743900960673,15.203,1811.5,1811.3,7.72899]
[1743900961214,11.203,1811.5,1811.4,3.86441]
[1743900974216,15.203,1811.5,1811.4,3.86441]
[1743900980093,11.203,1811.5,1811.4,4.0371148]
[1743900980722,6.02,1811.5,1811.4,5.65457328]
[1743900981017,6.02,1811.5,1811.4,4.8644148]
[1743900981922,6.02,1811.5,1811.4,4.69171]
[1743900982529,6.02,1811.5,1811.4,4.86441569]
[1743900983029,6.02,1811.5,1811.4,4.69171]
[1743900983895,6.02,1811.5,1811.4,3.86441]
[1743900984225,6.02,1811.5,1811.4,4.03711611]
[1743900984422,6.02,1811.5,1811.4,4.83871611]
[1743900986531,11.203,1811.6,1811.4,4.83871611]
[1743900986834,11.203,1811.6,1811.4,8.70297611]